bitfinex/quotes_SOLUSD_20241202
["timestamp","ask_amount","ask_price","bid_price","bid_amount"]
[1733152935782,5.0,228.26,228.23,26.33]
[1733152936160,5.0,228.28,228.23,26.33]
[1733152936360,5.0,228.26,228.23,26.33]
[1733152936572,5.0,228.28,228.2,23.776884]
[1733152936782,5.0,228.26,228.21,26.33]
[1733152937285,20.0,228.29,228.21,26.33]
[1733152937286,5.0,228.28,228.21,26.33]
[1733152937487,5.0,228.26,228.21,26.33]
[1733152938581,5.0,228.28,228.21,26.33]
[1733152938970,5.0,228.26,228.21,26.33]
[1733152939177,20.0,228.29,228.21,39.47]
[1733152939487,2.72419413,228.33,228.2,23.776884]
[1733152939488,5.0,228.26,228.23,26.33]
[1733152939791,5.0,228.26,228.25,39.47]
[1733152940477,20.0,228.31,228.25,39.47]
[1733152940478,5.0,228.29,228.25,39.47]
[1733152940671,25.0,228.31,228.27,39.47]
[1733152940875,5.0,228.32,228.27,39.47]
[1733152941185,5.0,228.32,228.29,39.47]
[1733152941685,0.5447619,228.34,228.29,39.47]
[1733152941865,0.4,228.3,228.29,39.47]
[1733152942066,0.4,228.3,228.29,63.246884]
[1733152945281,0.4,228.3,228.29,76.67053566]
[1733152946362,0.5447619,228.34,228.29,76.67053566]
[1733152946584,0.5447619,228.34,228.33,52.89365166]
[1733152946796,0.9447619,228.34,228.33,76.67053566]
[1733152948165,0.5447619,228.34,228.33,76.67053566]
[1733152948781,0.9447619,228.34,228.33,76.67053566]
[1733152949694,0.5447619,228.34,228.33,76.67053566]
[1733152950382,20.0,228.44,228.41,23.776884]
[1733152950569,5.0,228.46,228.41,23.776884]
[1733152950770,20.0,228.45,228.39,50.106884]
[1733152951575,42.7724,228.56,228.47,23.776884]
[1733152951781,5.0,228.54,228.47,50.106884]
[1733152951977,5.0,228.52,228.47,50.106884]
[1733152952280,35.49854753,228.56,228.49,63.246884]
[1733152952478,2.72614753,228.56,228.49,63.246884]
[1733152952683,2.72614753,228.56,228.49,50.106884]
[1733152952986,5.5447619,228.57,228.49,50.106884]
[1733152953197,5.0,228.56,228.48,23.776884]
[1733152953395,5.5447619,228.57,228.47,23.776884]
[1733152953583,5.0,228.55,228.47,50.106884]
[1733152953769,5.0,228.54,228.47,50.106884]
[1733152953971,5.0,228.55,228.47,63.53053566]
[1733152954173,5.0,228.55,228.47,76.67053566]
[1733152954568,5.0,228.55,228.47,63.53053566]
[1733152954770,5.0,228.54,228.47,63.53053566]
[1733152955171,5.0,228.55,228.47,63.53053566]
[1733152955467,5.0,228.54,228.47,63.53053566]
[1733152955874,5.0,228.54,228.47,50.106884]
[1733152956081,5.0,228.54,228.45,26.33]
[1733152956278,5.0,228.55,228.47,13.42365166]
[1733152956474,0.5447619,228.57,228.5,13.42365166]
[1733152956674,0.5447619,228.57,228.51,50.106884]
[1733152956875,0.5447619,228.57,228.51,23.776884]
[1733152957100,0.5447619,228.57,228.5,23.776884]
[1733152957269,0.5447619,228.57,228.53,23.776884]
[1733152958076,0.5447619,228.57,228.52,23.776884]
[1733152958395,0.5447619,228.57,228.53,23.776884]
[1733152958889,5.5447619,228.57,228.5,13.42365166]
[1733152959076,5.0,228.54,228.46,13.42365166]
[1733152959486,5.0,228.55,228.46,13.42365166]
[1733152959684,5.0,228.55,228.39,26.33]
[1733152959685,5.0,228.53,228.45,13.42365166]
[1733152959879,5.0,228.53,228.44,13.42365166]
[1733152960094,5.0,228.5,228.43,13.42365166]
[1733152960470,5.0,228.5,228.42,13.42365166]
[1733152960671,5.0,228.46,228.37,26.33]
[1733152960869,5.0,228.48,228.37,26.33]
[1733152960870,10.0,228.48,228.39,13.42365166]
[1733152961294,5.0,228.46,228.38,13.42365166]
[1733152961606,32.9385,228.49,228.41,13.42365166]
[1733152961897,5.0,228.48,228.42,13.42365166]
[1733152962283,32.9385,228.49,228.43,13.42365166]
[1733152962599,5.0,228.48,228.42,13.42365166]
[1733152962971,37.9385,228.49,228.39,13.42365166]
[1733152963801,5.0,228.45,228.38,13.42365166]
[1733152963980,5.0,228.43,228.38,13.42365166]
[1733152964299,5.0,228.43,228.33,26.33]
[1733152964300,5.0,228.43,228.36,13.42365166]
[1733152964876,5.0,228.43,228.37,13.42365166]
[1733152965681,5.0,228.45,228.39,13.42365166]
[1733152965998,5.0,228.45,228.4,23.776884]
[1733152966206,5.0,228.43,228.4,23.776884]
[1733152966383,5.0,228.43,228.38,23.776884]
[1733152967001,5.0,228.43,228.37,13.42365166]
[1733152967002,5.0,228.42,228.34,13.42365166]
[1733152967379,5.0,228.41,228.35,13.42365166]
[1733152967885,5.0,228.45,228.37,13.42365166]
[1733152968195,5.0,228.45,228.4,23.776884]
[1733152969099,5.0,228.51,228.43,37.20053566]
[1733152969274,5.0,228.51,228.45,13.42365166]
[1733152969479,5.0,228.46,228.43,23.776884]
[1733152969727,4.9555,228.45,228.43,23.776884]
[1733152970201,4.9555,228.47,228.43,23.776884]
[1733152970601,4.9555,228.48,228.43,23.776884]
[1733152970776,9.9555,228.5,228.43,23.776884]
[1733152970980,4.9555,228.48,228.43,23.776884]
[1733152971189,5.0,228.48,228.43,23.776884]
[1733152971393,4.9555,228.47,228.43,23.776884]
[1733152971598,5.0,228.48,228.43,23.776884]
[1733152972310,4.9555,228.47,228.41,23.776884]
[1733152972500,5.0,228.46,228.41,23.776884]
[1733152972704,5.0,228.44,228.41,23.776884]
[1733152973006,5.0,228.42,228.38,13.42365166]
[1733152973407,4.9555,228.41,228.36,13.42365166]
[1733152973601,5.0,228.42,228.36,13.42365166]
[1733152973905,4.9555,228.41,228.36,13.42365166]
[1733152974202,5.0,228.4,228.36,13.42365166]
[1733152975185,5.0,228.42,228.36,13.42365166]
[1733152975382,9.9555,228.41,228.36,26.56365166]
[1733152975712,9.9555,228.41,228.36,13.14]
[1733152975880,5.0,228.38,228.35,36.916884]
[1733152976084,4.9555,228.41,228.35,36.916884]
[1733152976313,5.0,228.42,228.36,26.56365166]
[1733152976604,5.0,228.42,228.37,23.776884]
[1733152976811,5.0,228.4,228.37,23.776884]
[1733152977106,4.9555,228.41,228.4,26.33]
[1733152977319,5.0,228.41,228.4,26.33]
[1733152977513,5.0,228.43,228.4,26.33]
[1733152977803,4.9555,228.43,228.42,50.106884]
[1733152978008,9.9555,228.43,228.42,50.106884]
[1733152978415,5.0,228.43,228.42,50.106884]
[1733152978590,5.0,228.41,228.37,39.47]
[1733152978791,41.6452,228.44,228.41,26.33]
[1733152979009,4.9555,228.42,228.41,26.33]
[1733152979196,4.9555,228.42,228.41,50.106884]
[1733152979397,9.9555,228.42,228.41,26.33]
[1733152979592,5.0,228.42,228.41,26.33]
[1733152979816,5.0,228.38,228.37,26.33]
[1733152980500,9.9555,228.38,228.37,26.33]
[1733152980711,9.9555,228.38,228.33,26.33]
[1733152981005,5.0,228.34,228.33,26.33]
[1733152981714,9.9555,228.34,228.33,26.33]
[1733152982014,9.9555,228.34,228.3,26.33]
[1733152982217,5.0,228.32,228.3,26.33]
[1733152982912,5.0,228.32,228.29,26.33]
[1733152983296,9.9555,228.3,228.29,26.33]
[1733152983813,30.2186,228.31,228.25,39.75365166]
[1733152984018,9.9555,228.36,228.3,26.33]
[1733152984220,5.0,228.34,228.3,52.89365166]
[1733152984395,9.9555,228.34,228.3,52.89365166]
[1733152984793,5.0,228.34,228.31,23.776884]
[1733152985111,9.9555,228.34,228.33,50.106884]
[1733152985724,5.0,228.36,228.33,50.106884]
[1733152985884,5.0,228.36,228.35,50.106884]
[1733152986089,9.9555,228.36,228.35,26.33]
[1733152986398,9.9555,228.36,228.35,50.106884]
[1733152986607,5.0,228.36,228.35,50.106884]
[1733152987508,4.9555,228.38,228.37,26.33]
[1733152987812,9.9555,228.38,228.37,50.106884]
[1733152988796,4.9555,228.33,228.32,26.33]
[1733152989725,4.9555,228.33,228.27,39.47]
[1733152989893,4.9555,228.35,228.29,39.47]
[1733152990100,9.9555,228.34,228.29,39.47]
[1733152990415,35.09516822,228.43,228.29,39.47]
[1733152990416,4.9555,228.37,228.29,39.47]
[1733152990589,4.9555,228.37,228.31,39.47]
[1733152990792,4.9555,228.37,228.32,23.776884]
[1733152991102,5.0,228.38,228.36,50.106884]
[1733152991308,4.9555,228.37,228.36,50.106884]
[1733152992501,4.9555,228.37,228.36,44.392874]
[1733152992823,37.3543,228.43,228.4,14.90198]
[1733152993023,5.0,228.42,228.41,26.33]
[1733152993200,4.9555,228.39,228.32,23.776884]
[1733152993403,5.0,228.4,228.32,23.776884]
[1733152993609,5.0,228.38,228.32,23.776884]
[1733152993911,9.9555,228.38,228.32,23.776884]
[1733152994108,5.0,228.36,228.35,26.33]
[1733152994425,5.0,228.38,228.35,26.33]
[1733152994801,4.9555,228.37,228.35,26.33]
[1733152995524,4.9555,228.37,228.36,26.33]
[1733152995706,9.9555,228.38,228.36,26.33]
[1733152995913,5.0,228.38,228.37,50.106884]
[1733152996216,9.9555,228.38,228.37,50.106884]
[1733152996925,9.9555,228.33,228.32,26.33]
[1733152997099,9.9555,228.33,228.32,50.106884]
[1733152998122,5.0,228.33,228.32,50.106884]
[1733152998304,10.3555,228.33,228.32,50.106884]
[1733152998925,5.0,228.3,228.26,26.33]
[1733152999606,4.9555,228.27,228.26,26.33]
[1733153000002,5.0,228.25,228.2,39.47]
[1733153000199,9.9555,228.25,228.2,39.47]
[1733153000405,9.9555,228.23,228.2,26.33]
[1733153000708,5.0,228.21,228.2,26.33]
[1733153001428,9.9555,228.21,228.2,26.33]
[1733153001811,5.0,228.21,228.2,26.33]
[1733153002012,9.9555,228.23,228.17,13.42365166]
[1733153002228,5.0,228.19,228.17,13.42365166]
[1733153002605,5.0,228.19,228.15,26.33]
[1733153002805,5.0,228.17,228.15,26.33]
[1733153003004,5.0,228.19,228.15,13.42365166]
[1733153004246,5.0,228.19,228.16,23.776884]
[1733153004933,4.9555,228.22,228.16,23.776884]
[1733153004934,4.9555,228.22,228.16,50.106884]
[1733153005136,5.0,228.25,228.19,13.42365166]
[1733153005323,5.0,228.23,228.21,13.42365166]
[1733153005523,5.0,228.23,228.2,23.776884]
[1733153006723,9.9555,228.26,228.2,23.776884]
[1733153006939,9.9555,228.24,228.2,23.776884]
[1733153007277,4.9555,228.23,228.2,23.776884]
[1733153007440,5.0,228.22,228.2,23.776884]
[1733153008120,9.9555,228.29,228.21,39.75365166]
[1733153008437,32.4249,228.31,228.26,39.75365166]
[1733153008622,9.9555,228.3,228.27,23.776884]
[1733153008947,5.0,228.3,228.27,23.776884]
[1733153009143,9.9555,228.3,228.27,23.776884]
[1733153009343,5.0,228.28,228.27,23.776884]
[1733153009645,5.0,228.28,228.22,13.42365166]
[1733153009646,5.0,228.26,228.22,13.42365166]
[1733153009827,5.0,228.25,228.23,23.776884]
[1733153010026,5.0,228.25,228.24,37.20053566]
[1733153010345,5.0,228.19,228.09,10.9602]
[1733153010646,9.9555,228.19,228.14,13.42365166]
[1733153010941,5.0,228.19,228.14,13.42365166]
[1733153011357,5.0,228.19,228.15,26.33]
[1733153011526,32.4249,228.31,228.18,39.75365166]
[1733153011527,5.0,228.23,228.18,39.75365166]
[1733153011853,4.9555,228.2,228.17,23.776884]
[1733153012157,9.9555,228.17,228.11,13.42365166]
[1733153012329,9.9555,228.15,228.12,26.33]
[1733153012530,5.0,228.15,228.1,26.33]
[1733153012840,9.9555,228.15,228.1,26.33]
[1733153013033,4.9555,228.12,228.1,26.33]
[1733153013438,5.0,228.13,228.1,26.33]
[1733153013740,5.0,228.16,228.12,26.33]
[1733153013938,4.9555,228.16,228.12,26.33]
[1733153014333,5.0,228.15,228.14,26.33]
[1733153014546,9.9555,228.17,228.16,50.106884]
[1733153014931,43.1863,228.19,228.18,26.33]
[1733153015129,43.1863,228.19,228.18,50.106884]
[1733153016264,9.9555,228.14,228.11,26.33]
[1733153016640,5.0,228.16,228.15,26.33]
[1733153016854,9.9555,228.16,228.15,50.106884]
[1733153017953,5.0,228.1,228.08,26.33]
[1733153018754,4.9555,228.11,228.09,39.47]
[1733153018957,4.9555,228.1,228.09,39.47]
[1733153019655,5.0,228.11,228.1,50.106884]
[1733153019858,9.9555,228.11,228.1,50.106884]
[1733153020536,5.0,228.11,228.1,50.106884]
[1733153020736,9.9555,228.11,228.1,50.106884]
[1733153021361,8.921068,228.11,228.1,50.106884]
[1733153022068,3.965568,228.11,228.1,50.106884]
[1733153022362,8.921068,228.11,228.1,50.106884]
[1733153022541,4.9555,228.15,228.1,76.67053566]
[1733153022734,4.9555,228.15,228.14,63.246884]
[1733153022931,8.921068,228.15,228.14,50.106884]
[1733153023166,8.921068,228.13,228.12,26.33]
[1733153023735,4.9555,228.1,228.08,26.33]
[1733153024060,3.965568,228.11,228.07,13.42365166]
[1733153024061,3.965568,228.11,228.1,26.33]
[1733153024239,4.9555,228.12,228.1,26.33]
[1733153024757,4.9555,228.12,228.11,36.916884]
[1733153025066,4.9555,228.12,228.11,63.246884]
[1733153027764,4.9555,228.12,228.11,50.106884]
[1733153032439,4.9555,228.12,228.11,26.33]
[1733153032652,4.9555,228.1,228.09,50.106884]
[1733153033457,4.9555,228.1,228.09,26.33]
[1733153033666,4.9555,228.07,228.04,13.14]
[1733153033876,4.9555,228.07,228.05,26.33]
[1733153034179,3.965568,228.0,227.99,26.33]
[1733153034565,8.921068,228.0,227.99,26.33]
[1733153034767,4.9555,228.0,227.99,39.47]
[1733153034953,34.692168,228.06,227.99,52.89365166]
[1733153035270,4.9555,228.05,228.02,39.47]
[1733153035778,8.921068,228.06,228.05,63.246884]
[1733153035981,3.965568,228.06,228.05,63.246884]
[1733153036164,8.921068,228.06,228.05,63.246884]
[1733153036481,4.9555,228.06,228.05,63.246884]
[1733153036655,3.965568,228.07,228.05,63.246884]
[1733153036852,4.9555,228.06,228.05,63.246884]
[1733153037358,4.9555,228.06,228.05,50.106884]
[1733153038455,4.9555,228.06,227.99,13.14]
[1733153038653,3.965568,228.03,228.02,39.47]
[1733153038852,8.921068,228.03,228.02,39.47]
[1733153039674,3.965568,228.03,228.02,63.246884]
[1733153039872,8.921068,228.03,228.02,63.246884]
[1733153040074,8.921068,228.03,228.02,50.106884]
[1733153040266,8.921068,227.99,227.98,26.33]
[1733153040877,4.9555,227.99,227.98,26.33]
[1733153041083,4.9555,227.99,227.98,39.47]
[1733153041260,8.921068,227.99,227.98,39.47]
[1733153041459,8.921068,227.99,227.98,26.33]
[1733153042485,8.921068,227.99,227.96,26.33]
[1733153042791,8.921068,227.97,227.96,63.246884]
[1733153043090,8.921068,227.99,227.96,63.246884]
[1733153043289,8.921068,227.99,227.98,63.246884]
[1733153043490,4.9555,227.99,227.98,63.246884]
[1733153043793,4.9555,228.01,228.0,39.47]
[1733153044089,31.0585,228.06,228.05,152.255816]
[1733153044276,45.3356,228.12,228.05,23.776884]
[1733153044479,45.3356,228.12,228.06,23.776884]
[1733153045990,43.0605,228.18,228.09,63.246884]
[1733153046688,30.6114,228.18,228.13,39.47]
[1733153046888,30.7172,228.23,228.15,39.47]
[1733153047091,30.7172,228.23,228.16,23.776884]
[1733153047310,30.7172,228.23,228.16,36.916884]
[1733153047596,31.308,228.29,228.21,23.776884]
[1733153048101,31.308,228.29,228.21,63.246884]
[1733153049502,31.308,228.29,228.21,50.106884]
[1733153049699,31.308,228.29,228.21,23.776884]
[1733153049905,20.0,228.26,228.21,23.776884]
[1733153050212,31.308,228.29,228.22,23.776884]
[1733153051115,31.308,228.29,228.2,23.776884]
[1733153051284,31.308,228.29,228.2,50.096884]
[1733153051485,44.0289,228.35,228.25,26.32]
[1733153051785,44.0289,228.35,228.29,23.776884]
[1733153052332,44.0289,228.35,228.25,23.776884]
[1733153053083,44.0289,228.35,228.27,23.776884]
[1733153054800,31.4055,228.35,228.27,23.776884]
[1733153055013,45.6063,228.41,228.3,13.42365166]
[1733153055214,45.6063,228.41,228.31,23.776884]
[1733153056002,45.6063,228.41,228.34,13.42365166]
[1733153056206,45.6063,228.41,228.35,23.776884]
[1733153056704,45.6063,228.41,228.33,23.776884]
[1733153058000,45.6063,228.41,228.31,23.776884]
[1733153058510,45.6063,228.41,228.29,23.776884]
[1733153059016,20.0,228.38,228.28,13.42365166]
[1733153059219,20.0,228.38,228.27,23.776884]
[1733153059220,45.6063,228.41,228.32,13.42365166]
[1733153059394,45.6063,228.41,228.33,23.776884]
[1733153059595,45.6063,228.41,228.3,13.42365166]
[1733153059797,45.6063,228.41,228.33,23.776884]
[1733153061097,32.6181,228.5,228.35,36.916884]
[1733153061322,1.09138916,228.49,228.33,23.776884]
[1733153062113,38.70962725,228.5,228.34,26.32]
[1733153062293,20.0,228.47,228.36,26.32]
[1733153062495,20.0,228.47,228.38,26.32]
[1733153062692,20.0,228.47,228.39,50.096884]
[1733153064897,32.6181,228.5,228.39,50.096884]
[1733153065700,33.70958766,228.5,228.39,50.096884]
[1733153066105,20.0,228.47,228.39,50.096884]
[1733153067345,32.6181,228.5,228.39,50.096884]
[1733153069017,20.0,228.47,228.39,50.096884]
[1733153069601,20.0,228.46,228.33,26.32]
[1733153069931,32.6181,228.5,228.41,13.14]
[1733153070215,32.6181,228.5,228.42,26.32]
[1733153070525,20.0,228.47,228.42,26.32]
[1733153070693,31.6005,228.69,228.67,36.32]
[1733153070896,31.6005,228.69,228.68,28.776884]
[1733153071199,31.6005,228.69,228.68,55.096884]
[1733153071393,31.6005,228.77,228.72,23.776884]
[1733153072202,31.6005,228.77,228.67,36.32]
[1733153072399,31.6005,228.77,228.7,23.776884]
[1733153072804,31.1005,228.77,228.7,23.776884]
[1733153073703,20.0,228.74,228.7,23.776884]
[1733153074297,20.0,228.74,228.68,23.776884]
[1733153075821,20.0,228.74,228.7,23.776884]
[1733153076399,20.0,228.74,228.68,23.776884]
[1733153076625,20.0,228.74,228.66,23.776884]
[1733153076800,20.0,228.74,228.67,26.32]
[1733153077005,20.0,228.74,228.68,28.776884]
[1733153077820,20.0,228.74,228.68,23.776884]
[1733153078026,20.0,228.74,228.68,18.776884]
[1733153079208,20.0,228.74,228.66,5.0]
[1733153079411,20.0,228.74,228.66,10.0]
[1733153079610,20.0,228.74,228.66,5.0]
[1733153080117,20.0,228.74,228.67,23.776884]
[1733153081237,0.88047264,228.73,228.62,5.0]
[1733153082113,0.88047264,228.73,228.61,5.0]
[1733153082316,0.88047264,228.73,228.6,31.32]
[1733153082627,0.88047264,228.73,228.59,5.0]
[1733153082827,20.0,228.69,228.59,5.0]
[1733153083042,0.88047264,228.68,228.59,5.0]
[1733153083227,20.0,228.69,228.61,5.0]
[1733153083721,0.88047264,228.68,228.58,5.0]
[1733153084033,20.0,228.69,228.59,5.0]
[1733153084244,0.88047264,228.68,228.58,23.776884]
[1733153084540,0.88047264,228.68,228.59,5.0]
[1733153084746,0.88047264,228.68,228.58,23.776884]
[1733153084913,0.88047264,228.68,228.59,5.0]
[1733153085236,0.88047264,228.68,228.6,23.776884]
[1733153086039,44.9765,228.72,228.64,28.776884]
[1733153086536,44.9765,228.72,228.64,23.776884]
[1733153086917,0.88047264,228.71,228.64,23.776884]
[1733153087237,20.0,228.69,228.64,23.776884]
[1733153088634,20.0,228.69,228.63,23.776884]
[1733153088936,20.0,228.69,228.62,5.0]
[1733153088937,20.0,228.69,228.6,10.0]
[1733153089139,20.0,228.69,228.61,23.776884]
[1733153091037,0.88047264,228.68,228.61,23.776884]
[1733153091238,20.0,228.69,228.61,23.776884]
[1733153091540,0.88047264,228.68,228.61,23.776884]
[1733153091740,0.88047264,228.68,228.58,5.0]
[1733153092315,0.88047264,228.68,228.57,23.776884]
[1733153092529,0.88047264,228.68,228.56,23.776884]
[1733153092725,0.88047264,228.68,228.58,28.776884]
[1733153092924,0.88047264,228.68,228.56,5.0]
[1733153093338,0.88047264,228.68,228.57,5.0]
[1733153093535,0.88047264,228.68,228.55,10.0]
[1733153093741,32.8435,228.67,228.53,5.0]
[1733153093943,20.0,228.63,228.52,5.0]
[1733153094125,0.88047264,228.62,228.54,5.0]
[1733153094444,0.88047264,228.62,228.52,5.0]
[1733153094639,0.88047264,228.62,228.54,5.0]
[1733153094949,0.88047264,228.62,228.55,5.0]
[1733153095252,20.0,228.63,228.57,5.0]
[1733153095624,20.0,228.63,228.58,23.776884]
[1733153097218,20.0,228.63,228.58,28.776884]
[1733153097738,20.0,228.63,228.59,5.0]
[1733153099244,20.0,228.63,228.58,55.096884]
[1733153099844,20.0,228.63,228.59,5.0]
[1733153100241,20.0,228.63,228.59,31.32]
[1733153100442,32.8435,228.67,228.59,31.32]
[1733153100443,32.8435,228.67,228.64,36.32]
[1733153100737,32.8435,228.67,228.66,23.776884]
[1733153100919,32.8435,228.67,228.64,36.32]
[1733153102135,32.8435,228.67,228.64,10.0]
[1733153102549,2.74728596,228.71,228.64,10.0]
[1733153102924,0.88047264,228.72,228.64,10.0]
[1733153103419,0.88047264,228.72,228.64,5.0]
[1733153104441,20.0,228.73,228.64,10.0]
[1733153104880,35.44443171,228.76,228.66,10.0]
[1733153105239,35.44443171,228.76,228.66,5.0]
[1733153105429,35.44443171,228.76,228.66,10.0]
[1733153105631,35.44443171,228.76,228.64,10.0]
[1733153105931,35.44443171,228.76,228.64,5.0]
[1733153105932,20.0,228.73,228.64,5.0]
[1733153106134,20.0,228.73,228.66,5.0]
[1733153106350,20.0,228.73,228.65,5.0]
[1733153106756,20.0,228.73,228.67,5.0]
[1733153108361,0.88047264,228.72,228.63,5.0]
[1733153108862,0.88047264,228.72,228.61,5.0]
[1733153109040,0.88047264,228.72,228.59,10.0]
[1733153109246,20.0,228.68,228.59,10.0]
[1733153109447,0.88047264,228.67,228.59,10.0]
[1733153110056,0.88047264,228.67,228.59,5.0]
[1733153110258,0.88047264,228.67,228.57,10.0]
[1733153110442,0.88047264,228.67,228.57,5.0]
[1733153110443,20.0,228.63,228.57,5.0]
[1733153110639,20.0,228.63,228.59,5.0]
[1733153110852,20.0,228.63,228.62,5.0]
[1733153112039,20.0,228.63,228.6,5.0]
[1733153113947,20.0,228.63,228.58,5.0]
[1733153114167,20.0,228.63,228.59,23.776884]
[1733153114366,20.0,228.63,228.57,5.0]
[1733153114367,20.0,228.63,228.57,23.776884]
[1733153114765,20.0,228.63,228.56,5.0]
[1733153115136,0.88047264,228.62,228.56,5.0]
[1733153115341,0.88047264,228.62,228.55,5.0]
[1733153116870,0.88047264,228.62,228.55,10.0]
[1733153117770,20.0,228.63,228.58,5.0]
[1733153118141,20.0,228.63,228.57,5.0]
[1733153118346,20.0,228.63,228.57,10.0]
[1733153119251,0.4,228.59,228.57,10.0]
[1733153120567,0.4,228.59,228.57,5.0]
[1733153120772,0.4,228.59,228.57,10.0]
[1733153120947,0.4,228.59,228.57,5.0]
[1733153122271,12.0846,228.58,228.57,5.0]
[1733153123056,12.0846,228.58,228.53,5.0]
[1733153123275,12.0846,228.58,228.56,5.0]
[1733153123471,12.0846,228.58,228.52,5.0]
[1733153123688,12.0846,228.58,228.56,5.0]
[1733153124181,12.0846,228.58,228.52,5.0]
[1733153124353,12.0846,228.58,228.56,5.0]
[1733153125164,12.0846,228.58,228.53,5.0]
[1733153125353,12.0846,228.58,228.56,5.0]
[1733153126954,12.0846,228.58,228.57,26.32]
[1733153127159,12.0846,228.58,228.56,5.0]
[1733153128265,12.0846,228.58,228.49,10.0]
[1733153128266,20.0,228.55,228.49,10.0]
[1733153128479,20.0,228.55,228.49,5.0]
[1733153128673,20.0,228.53,228.51,5.0]
[1733153129779,0.88047264,228.55,228.51,5.0]
[1733153129957,0.4,228.59,228.53,5.0]
[1733153130167,0.4,228.59,228.56,5.0]
[1733153131277,0.4,228.59,228.55,5.0]
[1733153131482,0.4,228.59,228.56,5.0]
[1733153131683,0.4,228.59,228.55,5.0]
[1733153131859,0.4,228.59,228.56,5.0]
[1733153132055,0.4,228.59,228.55,5.0]
[1733153132259,0.4,228.59,228.54,5.0]
[1733153132582,0.4,228.59,228.56,5.0]
[1733153132963,0.4,228.59,228.54,5.0]
[1733153133365,0.4,228.59,228.55,5.0]
[1733153133588,0.4,228.59,228.54,5.0]
[1733153133887,0.4,228.59,228.55,5.0]
[1733153134301,0.4,228.59,228.54,5.0]
[1733153134782,0.4,228.59,228.52,5.0]
[1733153135170,0.4,228.59,228.51,5.0]
[1733153135383,0.4,228.59,228.52,5.0]
[1733153135687,0.4,228.59,228.5,31.32]
[1733153136057,0.4,228.59,228.49,5.0]
[1733153136288,45.8503,228.58,228.48,5.0]
[1733153136584,20.0,228.55,228.48,5.0]
[1733153136884,20.0,228.55,228.5,5.0]
[1733153137056,0.88047264,228.54,228.48,5.0]
[1733153137659,0.88047264,228.54,228.48,31.32]
[1733153137866,0.88047264,228.54,228.5,5.0]
[1733153138189,0.88047264,228.54,228.48,36.32]
[1733153138382,0.88047264,228.54,228.48,31.32]
[1733153138586,0.88047264,228.54,228.46,5.0]
[1733153138587,0.88047264,228.54,228.47,5.0]
[1733153138786,0.88047264,228.54,228.5,5.0]
[1733153138955,0.88047264,228.54,228.47,5.0]
[1733153139558,0.88047264,228.54,228.44,36.32]
[1733153139790,0.88047264,228.54,228.44,26.32]
[1733153139989,32.5518,228.53,228.42,5.0]
[1733153140299,20.0,228.46,228.38,10.0]
[1733153140581,0.88047264,228.45,228.39,5.0]